[Event "*** SCC Grand Prix: Titled Tuesday Blitz"]
[Site "Chess.com"]
[Date "2020.06.09"]
[Round "6"]
[White "GM_Buhmann"]
[Black "bulletteemo"]
[Result "1-0"]
[WhiteElo "2739"]
[BlackElo "2532"]
[TimeControl "180+1"]
[EndTime "10:05:40 PDT"]
[Termination "GM_Buhmann won by resignation"]

1. e4 {[%clk 0:03:00.9]} 1... c5 {[%clk 0:02:51.4]} 2. Nf3 {[%clk 0:03:00.5]}
2... e6 {[%clk 0:02:49]} 3. d4 {[%clk 0:03:00.7]} 3... cxd4 {[%clk 0:02:49.9]}
4. Nxd4 {[%clk 0:03:01.1]} 4... Nc6 {[%clk 0:02:50.6]} 5. Nc3 {[%clk 0:03:01.3]}
5... Qc7 {[%clk 0:02:49.6]} 6. Be3 {[%clk 0:03:01.7]} 6... a6 {[%clk 0:02:48.6]}
7. Qf3 {[%clk 0:03:01.9]} 7... Bd6 {[%clk 0:02:43.3]} 8. O-O-O {[%clk
0:02:59.3]} 8... Be5 {[%clk 0:02:41.8]} 9. Nxc6 {[%clk 0:02:59.7]} 9... bxc6
{[%clk 0:02:36.3]} 10. Bd4 {[%clk 0:02:59.5]} 10... Nf6 {[%clk 0:02:19.4]} 11.
Bxe5 {[%clk 0:02:59]} 11... Qxe5 {[%clk 0:02:19.4]} 12. Qg3 {[%clk 0:02:59.3]}
12... Qxg3 {[%clk 0:02:12.8]} 13. hxg3 {[%clk 0:03:00.2]} 13... d5 {[%clk
0:02:10.6]} 14. f3 {[%clk 0:03:00.1]} 14... O-O {[%clk 0:02:04.3]} 15. g4 {[%clk
0:02:58.9]} 15... h6 {[%clk 0:02:03.6]} 16. Bd3 {[%clk 0:02:58.6]} 16... e5
{[%clk 0:01:59.9]} 17. Rde1 {[%clk 0:02:52.7]} 17... Re8 {[%clk 0:01:58]} 18. b3
{[%clk 0:02:46.5]} 18... a5 {[%clk 0:01:32.5]} 19. Na4 {[%clk 0:02:45.9]} 19...
Ba6 {[%clk 0:01:31.1]} 20. Bxa6 {[%clk 0:02:40.2]} 20... Rxa6 {[%clk 0:01:32]}
21. c4 {[%clk 0:02:32.8]} 21... Ra7 {[%clk 0:01:03.1]} 22. cxd5 {[%clk
0:02:28.9]} 22... cxd5 {[%clk 0:01:02.7]} 23. exd5 {[%clk 0:02:28.9]} 23... Nxd5
{[%clk 0:01:01.9]} 24. Re2 {[%clk 0:02:25]} 24... Rc7+ {[%clk 0:00:55.7]} 25.
Kb2 {[%clk 0:02:24.2]} 25... Rec8 {[%clk 0:00:32.3]} 26. Rd1 {[%clk 0:02:23.5]}
26... Nf4 {[%clk 0:00:22.4]} 27. Red2 {[%clk 0:02:23]} 27... f6 {[%clk
0:00:20.3]} 28. Nb6 {[%clk 0:02:20.7]} 28... Rb8 {[%clk 0:00:20.6]} 29. Rd8+
{[%clk 0:02:17.7]} 29... Rxd8 {[%clk 0:00:19.9]} 30. Rxd8+ {[%clk 0:02:17.9]}
30... Kf7 {[%clk 0:00:20.5]} 31. g3 {[%clk 0:02:16.2]} 31... Ne2 {[%clk
0:00:20.3]} 32. a4 {[%clk 0:02:11.4]} 32... Rc3 {[%clk 0:00:19.9]} 33. Rd2
{[%clk 0:02:08.2]} 33... Re3 {[%clk 0:00:17.5]} 34. Nc4 {[%clk 0:02:05.8]} 34...
Rxf3 {[%clk 0:00:17.6]} 35. Rxe2 {[%clk 0:02:05.7]} 35... Rxg3 {[%clk
0:00:18.3]} 36. Nxa5 {[%clk 0:02:05.6]} 36... Rxg4 {[%clk 0:00:18.7]} 37. Nc4
{[%clk 0:02:05.7]} 37... Ke6 {[%clk 0:00:16.5]} 38. a5 {[%clk 0:02:06.1]} 38...
Kd7 {[%clk 0:00:16.7]} 39. a6 {[%clk 0:02:03.9]} 39... Kc7 {[%clk 0:00:16.9]}
40. Rd2 {[%clk 0:02:02.9]} 40... h5 {[%clk 0:00:16.4]} 41. a7 {[%clk 0:01:53.4]}
41... Rxc4 {[%clk 0:00:10.5]} 42. bxc4 {[%clk 0:01:52.4]} 42... Kb7 {[%clk
0:00:10.9]} 43. Rd7+ {[%clk 0:01:52]} 43... Ka8 {[%clk 0:00:11.5]} 44. Rxg7
{[%clk 0:01:47.6]} 44... e4 {[%clk 0:00:11.4]} 45. Kc3 {[%clk 0:01:47.7]} 45...
f5 {[%clk 0:00:11.3]} 46. Kd4 {[%clk 0:01:48]} 1-0

[Event "*** SCC Grand Prix: Titled Tuesday Blitz"]
[Site "Chess.com"]
[Date "2020.06.09"]
[Round "6"]
[White "Shuvalov"]
[Black "rakshi2005"]
[Result "1-0"]
[WhiteElo "2456"]
[BlackElo "2330"]
[TimeControl "180+1"]
[EndTime "10:05:40 PDT"]
[Termination "Shuvalov won by resignation"]

1. Nf3 {[%clk 0:02:55.9]} 1... Nf6 {[%clk 0:02:58.6]} 2. c4 {[%clk 0:02:54.3]}
2... g6 {[%clk 0:02:57]} 3. Nc3 {[%clk 0:02:53.7]} 3... Bg7 {[%clk 0:02:55.5]}
4. d4 {[%clk 0:02:53.6]} 4... O-O {[%clk 0:02:54.9]} 5. e4 {[%clk 0:02:52.7]}
5... d6 {[%clk 0:02:55.8]} 6. h3 {[%clk 0:02:49.2]} 6... Nc6 {[%clk 0:02:51.6]}
7. Be3 {[%clk 0:02:46]} 7... e5 {[%clk 0:02:50.8]} 8. d5 {[%clk 0:02:46.1]} 8...
Ne7 {[%clk 0:02:50]} 9. Nd2 {[%clk 0:02:45]} 9... Nd7 {[%clk 0:02:49.9]} 10. g4
{[%clk 0:02:44.1]} 10... f5 {[%clk 0:02:45.8]} 11. f3 {[%clk 0:02:40.9]} 11...
b6 {[%clk 0:02:32.1]} 12. b4 {[%clk 0:02:38.4]} 12... a5 {[%clk 0:02:20.9]} 13.
a3 {[%clk 0:02:37.8]} 13... axb4 {[%clk 0:02:19]} 14. axb4 {[%clk 0:02:38.7]}
14... Rxa1 {[%clk 0:02:18.7]} 15. Qxa1 {[%clk 0:02:39.6]} 15... fxg4 {[%clk
0:02:18.8]} 16. hxg4 {[%clk 0:02:35.1]} 16... c6 {[%clk 0:02:14.2]} 17. Qa7
{[%clk 0:02:25.8]} 17... cxd5 {[%clk 0:02:03.3]} 18. cxd5 {[%clk 0:02:25.7]}
18... Rf7 {[%clk 0:02:02]} 19. Nb5 {[%clk 0:02:20.7]} 19... Kh8 {[%clk
0:01:12.3]} 20. Nxd6 {[%clk 0:02:16.4]} 20... Rf8 {[%clk 0:01:12.3]} 21. Nb5
{[%clk 0:01:48.7]} 21... Qe8 {[%clk 0:00:47.4]} 22. Qc7 {[%clk 0:01:21.1]} 22...
Rf7 {[%clk 0:00:33.8]} 23. Nd6 {[%clk 0:01:19.4]} 23... Qf8 {[%clk 0:00:28.2]}
24. Nxf7+ {[%clk 0:01:18.8]} 24... Qxf7 {[%clk 0:00:29.1]} 25. d6 {[%clk
0:01:13.2]} 25... Ng8 {[%clk 0:00:26.6]} 26. Qxc8 {[%clk 0:01:11.9]} 26... Nf6
{[%clk 0:00:21.7]} 27. Bc4 {[%clk 0:01:10.2]} 27... Qa7 {[%clk 0:00:19.2]} 28.
Ke2 {[%clk 0:01:02.9]} 1-0

[Event "*** SCC Grand Prix: Titled Tuesday Blitz"]
[Site "Chess.com"]
[Date "2020.06.09"]
[Round "6"]
[White "killer311"]
[Black "putra48"]
[Result "1-0"]
[WhiteElo "2396"]
[BlackElo "2591"]
[TimeControl "180+1"]
[EndTime "10:05:44 PDT"]
[Termination "killer311 won by resignation"]

1. d4 {[%clk 0:03:00.9]} 1... d5 {[%clk 0:02:58.8]} 2. c4 {[%clk 0:03:01]} 2...
e6 {[%clk 0:02:58.7]} 3. e3 {[%clk 0:03:01.1]} 3... Nf6 {[%clk 0:02:58.8]} 4.
Nf3 {[%clk 0:03:01.5]} 4... c5 {[%clk 0:02:58.9]} 5. cxd5 {[%clk 0:03:01.4]}
5... Nxd5 {[%clk 0:02:58.8]} 6. Bb5+ {[%clk 0:03:02.3]} 6... Bd7 {[%clk
0:02:58.6]} 7. Bxd7+ {[%clk 0:03:02.1]} 7... Nxd7 {[%clk 0:02:59.5]} 8. O-O
{[%clk 0:03:02.8]} 8... Be7 {[%clk 0:02:57.7]} 9. b3 {[%clk 0:03:02.6]} 9...
cxd4 {[%clk 0:02:57.2]} 10. Nxd4 {[%clk 0:02:55.5]} 10... O-O {[%clk 0:02:57.6]}
11. Bb2 {[%clk 0:02:55.6]} 11... Bf6 {[%clk 0:02:58.5]} 12. Nc3 {[%clk
0:02:53.2]} 12... N5b6 {[%clk 0:02:45.1]} 13. Ne4 {[%clk 0:02:51]} 13... Be5
{[%clk 0:02:44.7]} 14. f4 {[%clk 0:02:47.5]} 14... Bb8 {[%clk 0:02:38.9]} 15.
Nb5 {[%clk 0:02:42.7]} 15... Qe7 {[%clk 0:02:37.1]} 16. Ba3 {[%clk 0:02:37.7]}
16... Qe8 {[%clk 0:02:30.1]} 17. Bxf8 {[%clk 0:02:33.5]} 17... Qxf8 {[%clk
0:02:30.8]} 18. Qd4 {[%clk 0:02:31]} 18... a6 {[%clk 0:02:30.1]} 19. Nbd6 {[%clk
0:02:30.6]} 19... Ba7 {[%clk 0:02:30.4]} 20. Kh1 {[%clk 0:02:15.4]} 20... Nd5
{[%clk 0:02:30.2]} 21. Qd3 {[%clk 0:02:14.1]} 21... Nxe3 {[%clk 0:02:29]} 22.
Rf3 {[%clk 0:02:13.1]} 22... Nd5 {[%clk 0:02:27]} 23. Ng5 {[%clk 0:02:03.2]}
23... f5 {[%clk 0:02:13]} 24. Nxb7 {[%clk 0:01:57.3]} 24... N7f6 {[%clk
0:01:59.4]} 25. Nxe6 {[%clk 0:01:50.5]} 25... Qe7 {[%clk 0:01:59]} 26. Nbd8
{[%clk 0:01:43.6]} 26... Rxd8 {[%clk 0:01:50.3]} 27. Nxd8 {[%clk 0:01:44.5]}
27... Qxd8 {[%clk 0:01:51.2]} 28. Qxf5 {[%clk 0:01:40.9]} 28... Qd7 {[%clk
0:01:07]} 29. Qxd7 {[%clk 0:01:36.7]} 29... Nxd7 {[%clk 0:01:07.9]} 30. Rd1
{[%clk 0:01:37.3]} 30... N7f6 {[%clk 0:01:07.5]} 31. g3 {[%clk 0:01:37.2]} 31...
h5 {[%clk 0:01:03.9]} 32. Rfd3 {[%clk 0:01:36.6]} 32... Ne3 {[%clk 0:01:04.1]}
33. Re1 {[%clk 0:01:33.1]} 33... Nfg4 {[%clk 0:01:04.1]} 34. Re2 {[%clk
0:01:31.9]} 34... Nf5 {[%clk 0:01:01.5]} 35. Kg2 {[%clk 0:01:30.3]} 35... a5
{[%clk 0:00:54.5]} 36. h3 {[%clk 0:01:29.2]} 36... Nf6 {[%clk 0:00:50.6]} 37.
Re5 {[%clk 0:01:29.1]} 37... Nd4 {[%clk 0:00:36.3]} 38. Rxa5 {[%clk 0:01:26.5]}
38... Bb6 {[%clk 0:00:36.7]} 39. Ra6 {[%clk 0:01:23.4]} 39... Bc5 {[%clk
0:00:36.5]} 40. b4 {[%clk 0:01:22.8]} 1-0

[Event "*** SCC Grand Prix: Titled Tuesday Blitz"]
[Site "Chess.com"]
[Date "2020.06.09"]
[Round "6"]
[White "Susal_De_Silva"]
[Black "GoValya"]
[Result "1/2-1/2"]
[WhiteElo "2354"]
[BlackElo "2185"]
[TimeControl "180+1"]
[EndTime "10:05:47 PDT"]
[Termination "Game drawn by agreement"]

1. e4 {[%clk 0:03:00.9]} 1... g6 {[%clk 0:02:59.5]} 2. d4 {[%clk 0:03:00.9]}
2... Bg7 {[%clk 0:02:58.9]} 3. Nc3 {[%clk 0:03:01.4]} 3... c5 {[%clk 0:02:58.8]}
4. d5 {[%clk 0:03:00.3]} 4... d6 {[%clk 0:02:49.9]} 5. h4 {[%clk 0:02:59.2]}
5... Nf6 {[%clk 0:02:44.7]} 6. Be2 {[%clk 0:02:56.3]} 6... O-O {[%clk
0:02:38.3]} 7. h5 {[%clk 0:02:55.1]} 7... b5 {[%clk 0:02:27.8]} 8. Bxb5 {[%clk
0:02:43]} 8... Nxe4 {[%clk 0:02:18.9]} 9. Nxe4 {[%clk 0:02:38.5]} 9... Qa5+
{[%clk 0:02:17.8]} 10. c3 {[%clk 0:02:38.2]} 10... Qxb5 {[%clk 0:02:17.1]} 11.
Ne2 {[%clk 0:02:27.2]} 11... Ba6 {[%clk 0:02:06.9]} 12. N2g3 {[%clk 0:02:22.7]}
12... Nd7 {[%clk 0:01:51.3]} 13. Bf4 {[%clk 0:02:17.7]} 13... Ne5 {[%clk
0:01:43.3]} 14. Bxe5 {[%clk 0:02:14.9]} 14... Bxe5 {[%clk 0:01:42.9]} 15. Qd2
{[%clk 0:02:12.6]} 15... Rab8 {[%clk 0:01:23.4]} 16. O-O-O {[%clk 0:01:57.3]}
16... Qa4 {[%clk 0:01:20.6]} 17. b3 {[%clk 0:01:53.3]} 17... Qa5 {[%clk
0:01:14.8]} 18. Ne2 {[%clk 0:01:33.6]} 18... Bxe2 {[%clk 0:00:57.3]} 19. Qxe2
{[%clk 0:01:33.8]} 19... Bxc3 {[%clk 0:00:56.5]} 20. Rd3 {[%clk 0:01:34.3]}
20... Qa3+ {[%clk 0:00:53.6]} 21. Kd1 {[%clk 0:01:29.5]} 21... Rxb3 {[%clk
0:00:51.2]} 22. Qc2 {[%clk 0:01:20.5]} 22... Rb2 {[%clk 0:00:41.7]} 23. Rxc3
{[%clk 0:01:13.3]} 23... Qxa2 {[%clk 0:00:37.4]} 24. Qd3 {[%clk 0:01:11.4]}
24... Rfb8 {[%clk 0:00:28.1]} 25. Nd2 {[%clk 0:01:05.2]} 25... a5 {[%clk
0:00:19]} 26. Ke2 {[%clk 0:01:03.1]} 26... Rxd2+ {[%clk 0:00:17.1]} 27. Qxd2
{[%clk 0:01:00.7]} 27... Rb2 {[%clk 0:00:16.6]} 28. Rd3 {[%clk 0:01:00.7]} 28...
Rxd2+ {[%clk 0:00:16.2]} 29. Rxd2 {[%clk 0:01:01.5]} 29... Qc4+ {[%clk
0:00:16.7]} 30. Ke3 {[%clk 0:00:59.6]} 1/2-1/2

[Event "*** SCC Grand Prix: Titled Tuesday Blitz"]
[Site "Chess.com"]
[Date "2020.06.09"]
[Round "6"]
[White "MusicCityMaster"]
[Black "bmt011"]
[Result "1-0"]
[WhiteElo "2330"]
[BlackElo "2117"]
[TimeControl "180+1"]
[EndTime "10:05:48 PDT"]
[Termination "MusicCityMaster won by resignation"]

1. e4 {[%clk 0:03:00.9]} 1... e6 {[%clk 0:02:59.4]} 2. d4 {[%clk 0:02:57.2]}
2... d5 {[%clk 0:02:59.8]} 3. Nc3 {[%clk 0:02:57.6]} 3... Nf6 {[%clk 0:02:59]}
4. e5 {[%clk 0:02:55.6]} 4... Nfd7 {[%clk 0:02:58.7]} 5. Nce2 {[%clk 0:02:54.7]}
5... c5 {[%clk 0:02:52.4]} 6. c3 {[%clk 0:02:55.3]} 6... Nc6 {[%clk 0:02:52.5]}
7. Nf3 {[%clk 0:02:55.4]} 7... f6 {[%clk 0:02:51.3]} 8. Nf4 {[%clk 0:02:46.4]}
8... cxd4 {[%clk 0:02:42.9]} 9. Nxe6 {[%clk 0:02:40.2]} 9... Qb6 {[%clk
0:02:39]} 10. cxd4 {[%clk 0:02:22.2]} 10... fxe5 {[%clk 0:02:25.5]} 11. dxe5
{[%clk 0:02:07]} 11... Ndxe5 {[%clk 0:02:25.3]} 12. Nxe5 {[%clk 0:02:06.8]}
12... Nxe5 {[%clk 0:02:19.9]} 13. Qh5+ {[%clk 0:02:03.4]} 13... Ng6 {[%clk
0:02:04.9]} 14. Bb5+ {[%clk 0:01:59.9]} 14... Bd7 {[%clk 0:01:56]} 15. Bxd7+
{[%clk 0:01:39.2]} 15... Kxd7 {[%clk 0:01:56.2]} 16. Qxd5+ {[%clk 0:01:38.8]}
16... Qd6 {[%clk 0:01:32.8]} 17. Nxf8+ {[%clk 0:01:36.8]} 17... Rhxf8 {[%clk
0:01:29.2]} 18. Qxb7+ {[%clk 0:01:36]} 18... Ke6 {[%clk 0:00:57.2]} 19. O-O
{[%clk 0:01:32.9]} 19... Ne5 {[%clk 0:00:37.8]} 20. Re1 {[%clk 0:01:14.5]} 20...
Rab8 {[%clk 0:00:19.4]} 21. Qe4 {[%clk 0:00:50.9]} 21... Rb4 {[%clk 0:00:17.6]}
22. Qe2 {[%clk 0:00:40.4]} 22... Rbf4 {[%clk 0:00:12]} 23. Bxf4 {[%clk
0:00:39.3]} 1-0

[Event "*** SCC Grand Prix: Titled Tuesday Blitz"]
[Site "Chess.com"]
[Date "2020.06.09"]
[Round "6"]
[White "TST2014"]
[Black "FrogMist"]
[Result "0-1"]
[WhiteElo "2522"]
[BlackElo "2381"]
[TimeControl "180+1"]
[EndTime "10:05:51 PDT"]
[Termination "FrogMist won by resignation"]

1. d4 {[%clk 0:01:19.6]} 1... Nf6 {[%clk 0:02:58.6]} 2. c4 {[%clk 0:01:19.5]}
2... e6 {[%clk 0:02:58.2]} 3. Nf3 {[%clk 0:01:19.5]} 3... d5 {[%clk 0:02:55.9]}
4. Nc3 {[%clk 0:01:19.5]} 4... Bb4 {[%clk 0:02:55]} 5. e3 {[%clk 0:01:19.1]}
5... O-O {[%clk 0:02:54.6]} 6. a3 {[%clk 0:01:19.2]} 6... Bxc3+ {[%clk
0:02:54.1]} 7. bxc3 {[%clk 0:01:20.1]} 7... b6 {[%clk 0:02:53.9]} 8. a4 {[%clk
0:01:19.8]} 8... Ba6 {[%clk 0:02:49.3]} 9. Qb3 {[%clk 0:01:18]} 9... Nc6 {[%clk
0:02:38.7]} 10. cxd5 {[%clk 0:01:16.9]} 10... Na5 {[%clk 0:02:33.5]} 11. Qa2
{[%clk 0:01:12.4]} 11... Bxf1 {[%clk 0:02:33.3]} 12. Kxf1 {[%clk 0:01:12.3]}
12... exd5 {[%clk 0:02:21.9]} 13. Ba3 {[%clk 0:01:10.1]} 13... Re8 {[%clk
0:02:20.8]} 14. Ke2 {[%clk 0:01:09.5]} 14... Qc8 {[%clk 0:02:18.8]} 15. Qc2
{[%clk 0:01:01.6]} 15... Ne4 {[%clk 0:02:15.1]} 16. Rhc1 {[%clk 0:00:56.2]}
16... Qa6+ {[%clk 0:02:08.4]} 17. Ke1 {[%clk 0:00:56]} 17... c5 {[%clk
0:02:04.2]} 18. Qe2 {[%clk 0:00:47]} 18... Qxe2+ {[%clk 0:02:02.6]} 19. Kxe2
{[%clk 0:00:46.1]} 19... Nb3 {[%clk 0:02:03.5]} 20. Rab1 {[%clk 0:00:43.3]}
20... Nxc1+ {[%clk 0:02:03.7]} 21. Rxc1 {[%clk 0:00:44.2]} 21... cxd4 {[%clk
0:01:59.5]} 22. cxd4 {[%clk 0:00:43.5]} 22... Rac8 {[%clk 0:01:59.5]} 23. Nd2
{[%clk 0:00:25.8]} 23... Rxc1 {[%clk 0:01:57.5]} 24. Bxc1 {[%clk 0:00:24.9]}
24... Nc3+ {[%clk 0:01:57.3]} 25. Kd3 {[%clk 0:00:25]} 25... Nxa4 {[%clk
0:01:58.2]} 26. Ba3 {[%clk 0:00:24.6]} 26... Rc8 {[%clk 0:01:58.1]} 27. Nb1
{[%clk 0:00:20.9]} 27... a5 {[%clk 0:01:56.4]} 28. f3 {[%clk 0:00:21.3]} 28...
b5 {[%clk 0:01:55.9]} 29. Bd6 {[%clk 0:00:19.6]} 29... Nb2+ {[%clk 0:01:53.2]}
30. Ke2 {[%clk 0:00:18.3]} 30... Rc2+ {[%clk 0:01:52.7]} 31. Ke1 {[%clk
0:00:18.7]} 31... Rc1+ {[%clk 0:01:52.5]} 32. Kd2 {[%clk 0:00:18.1]} 32... Rxb1
{[%clk 0:01:50.2]} 33. Kc2 {[%clk 0:00:19]} 33... Nc4 {[%clk 0:01:50.5]} 34.
Kxb1 {[%clk 0:00:18.2]} 34... Nxd6 {[%clk 0:01:50.5]} 35. Kc2 {[%clk 0:00:19.1]}
35... Nc4 {[%clk 0:01:50.5]} 36. Kd3 {[%clk 0:00:19.3]} 36... f5 {[%clk
0:01:50]} 37. e4 {[%clk 0:00:19.8]} 37... fxe4+ {[%clk 0:01:50.9]} 38. fxe4
{[%clk 0:00:20.7]} 38... dxe4+ {[%clk 0:01:50.8]} 39. Kxe4 {[%clk 0:00:21.6]}
39... Kf7 {[%clk 0:01:51.3]} 40. Kd5 {[%clk 0:00:22]} 40... a4 {[%clk
0:01:51.4]} 41. Ke4 {[%clk 0:00:22.2]} 41... Ke6 {[%clk 0:01:51.2]} 42. d5+
{[%clk 0:00:23.1]} 42... Kd6 {[%clk 0:01:51.3]} 43. Kd4 {[%clk 0:00:24]} 43...
Nb6 {[%clk 0:01:51.4]} 44. g4 {[%clk 0:00:23.6]} 44... Nxd5 {[%clk 0:01:52.3]}
45. h4 {[%clk 0:00:24.5]} 45... a3 {[%clk 0:01:52.4]} 46. g5 {[%clk 0:00:25.2]}
46... a2 {[%clk 0:01:52.7]} 47. h5 {[%clk 0:00:26.1]} 47... a1=Q+ {[%clk
0:01:53.1]} 48. Ke4 {[%clk 0:00:27]} 48... Qe5+ {[%clk 0:01:52.7]} 0-1

[Event "*** SCC Grand Prix: Titled Tuesday Blitz"]
[Site "Chess.com"]
[Date "2020.06.09"]
[Round "6"]
[White "politeplayer"]
[Black "Ariadna_Atreides"]
[Result "1-0"]
[WhiteElo "2274"]
[BlackElo "1956"]
[TimeControl "180+1"]
[EndTime "10:05:51 PDT"]
[Termination "politeplayer won on time"]

1. e4 {[%clk 0:02:59.7]} 1... c5 {[%clk 0:02:59.5]} 2. Nf3 {[%clk 0:02:59]} 2...
d6 {[%clk 0:02:59.7]} 3. d4 {[%clk 0:02:56.9]} 3... cxd4 {[%clk 0:02:59.6]} 4.
Qxd4 {[%clk 0:02:57.4]} 4... Nf6 {[%clk 0:03:00.1]} 5. Nc3 {[%clk 0:02:55.2]}
5... Nc6 {[%clk 0:02:59.1]} 6. Bb5 {[%clk 0:02:55]} 6... Bd7 {[%clk 0:02:54.9]}
7. Bxc6 {[%clk 0:02:54.6]} 7... Bxc6 {[%clk 0:02:55]} 8. Bg5 {[%clk 0:02:55.2]}
8... e6 {[%clk 0:02:52]} 9. O-O-O {[%clk 0:02:52.9]} 9... Be7 {[%clk 0:02:52]}
10. Rhe1 {[%clk 0:02:51.1]} 10... Qc7 {[%clk 0:02:51.4]} 11. Bxf6 {[%clk
0:02:30.6]} 11... gxf6 {[%clk 0:02:39.2]} 12. Qd2 {[%clk 0:02:24.6]} 12... b5
{[%clk 0:02:34.7]} 13. Kb1 {[%clk 0:02:17.5]} 13... h5 {[%clk 0:02:32.5]} 14.
Nd4 {[%clk 0:02:11.5]} 14... a6 {[%clk 0:02:10.4]} 15. Nxc6 {[%clk 0:02:08.5]}
15... Qxc6 {[%clk 0:02:10.5]} 16. Re3 {[%clk 0:01:52.2]} 16... O-O-O {[%clk
0:02:04.3]} 17. Rd3 {[%clk 0:01:48.5]} 17... Kb7 {[%clk 0:02:00.8]} 18. a3
{[%clk 0:01:41.3]} 18... h4 {[%clk 0:01:48.3]} 19. h3 {[%clk 0:01:40.4]} 19...
Rh5 {[%clk 0:01:44.5]} 20. f3 {[%clk 0:01:39.7]} 20... Rc5 {[%clk 0:01:42.6]}
21. Ne2 {[%clk 0:01:34.5]} 21... d5 {[%clk 0:01:25.7]} 22. Nd4 {[%clk
0:01:31.2]} 22... Qd7 {[%clk 0:01:23.7]} 23. Nb3 {[%clk 0:01:28.7]} 23... Rc7
{[%clk 0:01:05.3]} 24. exd5 {[%clk 0:01:28.5]} 24... exd5 {[%clk 0:00:04.6]} 25.
Rxd5 {[%clk 0:01:25.6]} 25... Qxd5 {[%clk 0:00:04.8]} 26. Qxd5+ {[%clk
0:01:25.9]} 26... Rxd5 {[%clk 0:00:04.4]} 27. Rxd5 {[%clk 0:01:26.4]} 27... Kb6
{[%clk 0:00:03.2]} 28. Rf5 {[%clk 0:01:15]} 28... Rc4 {[%clk 0:00:02.9]} 29. c3
{[%clk 0:01:09.2]} 29... a5 {[%clk 0:00:02.6]} 30. Nd4 {[%clk 0:01:08.7]} 1-0

[Event "*** SCC Grand Prix: Titled Tuesday Blitz"]
[Site "Chess.com"]
[Date "2020.06.09"]
[Round "6"]
[White "MoonlighT89"]
[Black "GaboSalazar2001"]
[Result "1-0"]
[WhiteElo "2573"]
[BlackElo "2273"]
[TimeControl "180+1"]
[EndTime "10:05:54 PDT"]
[Termination "MoonlighT89 won by resignation"]

1. e4 {[%clk 0:03:00.9]} 1... c5 {[%clk 0:03:00.6]} 2. Nc3 {[%clk 0:02:59.5]}
2... a6 {[%clk 0:03:00.7]} 3. Nf3 {[%clk 0:02:59.4]} 3... e6 {[%clk 0:02:59.6]}
4. d4 {[%clk 0:02:59.6]} 4... cxd4 {[%clk 0:03:00.1]} 5. Nxd4 {[%clk 0:03:00]}
5... d6 {[%clk 0:03:00.5]} 6. g4 {[%clk 0:02:58]} 6... Nf6 {[%clk 0:02:57.3]} 7.
g5 {[%clk 0:02:54.3]} 7... Nfd7 {[%clk 0:02:57.8]} 8. Bg2 {[%clk 0:02:54.1]}
8... b5 {[%clk 0:02:54.4]} 9. f4 {[%clk 0:02:50.9]} 9... Bb7 {[%clk 0:02:53.4]}
10. O-O {[%clk 0:02:45.5]} 10... Nc5 {[%clk 0:02:42.8]} 11. a3 {[%clk
0:02:41.1]} 11... Be7 {[%clk 0:02:35]} 12. Qg4 {[%clk 0:02:38]} 12... Nc6 {[%clk
0:02:18.8]} 13. Nxc6 {[%clk 0:02:32]} 13... Bxc6 {[%clk 0:02:19.7]} 14. Be3
{[%clk 0:02:28.6]} 14... Qc7 {[%clk 0:02:03.2]} 15. f5 {[%clk 0:02:28.5]} 15...
Bd7 {[%clk 0:01:47.4]} 16. Rad1 {[%clk 0:01:53]} 16... Rc8 {[%clk 0:01:36.4]}
17. Bd4 {[%clk 0:01:48.2]} 17... e5 {[%clk 0:01:17.3]} 18. Be3 {[%clk
0:01:47.1]} 18... Bc6 {[%clk 0:01:15.8]} 19. Bxc5 {[%clk 0:01:33.5]} 19... dxc5
{[%clk 0:01:14.8]} 20. Nd5 {[%clk 0:01:34.4]} 20... Bxd5 {[%clk 0:01:14.1]} 21.
Rxd5 {[%clk 0:01:35.3]} 21... f6 {[%clk 0:01:01.6]} 22. Qh5+ {[%clk 0:01:28]}
22... Kf8 {[%clk 0:00:59.3]} 23. Rfd1 {[%clk 0:01:27.5]} 23... Rd8 {[%clk
0:00:57.5]} 24. R1d2 {[%clk 0:00:51.8]} 24... fxg5 {[%clk 0:00:55.7]} 25. Qd1
{[%clk 0:00:51]} 25... Kf7 {[%clk 0:00:47.4]} 26. Rd7 {[%clk 0:00:49.8]} 26...
Qc6 {[%clk 0:00:29]} 27. Rxd8 {[%clk 0:00:45.5]} 27... Bxd8 {[%clk 0:00:18]} 28.
Rxd8 {[%clk 0:00:46.4]} 1-0

[Event "*** SCC Grand Prix: Titled Tuesday Blitz"]
[Site "Chess.com"]
[Date "2020.06.09"]
[Round "6"]
[White "CHESSMASTER759"]
[Black "Nikithebest"]
[Result "1-0"]
[WhiteElo "2606"]
[BlackElo "2444"]
[TimeControl "180+1"]
[EndTime "10:05:56 PDT"]
[Termination "CHESSMASTER759 won by resignation"]

1. e4 {[%clk 0:02:55.4]} 1... c5 {[%clk 0:02:59.2]} 2. Nf3 {[%clk 0:02:53.2]}
2... d6 {[%clk 0:02:58.7]} 3. d4 {[%clk 0:02:53.1]} 3... cxd4 {[%clk 0:02:58.5]}
4. Nxd4 {[%clk 0:02:54]} 4... Nf6 {[%clk 0:02:58.1]} 5. Nc3 {[%clk 0:02:53.4]}
5... g6 {[%clk 0:02:57.6]} 6. Be3 {[%clk 0:02:47.8]} 6... a6 {[%clk 0:02:56.4]}
7. f3 {[%clk 0:02:46.7]} 7... b5 {[%clk 0:02:55.9]} 8. Qd2 {[%clk 0:02:45.8]}
8... Bb7 {[%clk 0:02:55.6]} 9. O-O-O {[%clk 0:02:45.5]} 9... Nbd7 {[%clk
0:02:54.1]} 10. Kb1 {[%clk 0:02:45.2]} 10... Rc8 {[%clk 0:02:43]} 11. a3 {[%clk
0:02:45.4]} 11... Bg7 {[%clk 0:02:39.7]} 12. h4 {[%clk 0:02:45.3]} 12... h5
{[%clk 0:02:27.7]} 13. Nde2 {[%clk 0:02:44.8]} 13... Ne5 {[%clk 0:02:23.3]} 14.
Nf4 {[%clk 0:02:43.4]} 14... Nc4 {[%clk 0:02:15.9]} 15. Bxc4 {[%clk 0:02:42.9]}
15... Rxc4 {[%clk 0:02:16.8]} 16. e5 {[%clk 0:02:39.2]} 16... Nd7 {[%clk
0:02:13.4]} 17. e6 {[%clk 0:02:33]} 17... Nc5 {[%clk 0:01:41]} 18. exf7+ {[%clk
0:02:10.7]} 18... Kxf7 {[%clk 0:01:41]} 19. Nce2 {[%clk 0:02:06.4]} 19... Na4
{[%clk 0:01:12.6]} 20. Qd3 {[%clk 0:01:57.5]} 20... Rh6 {[%clk 0:01:01.8]} 21.
Bc1 {[%clk 0:01:53]} 21... Qa5 {[%clk 0:00:35.2]} 22. Nh3 {[%clk 0:01:44.5]}
22... Kg8 {[%clk 0:00:31.4]} 23. b3 {[%clk 0:01:32.2]} 23... Nc3+ {[%clk
0:00:30.6]} 24. Nxc3 {[%clk 0:01:32.2]} 24... Rxc3 {[%clk 0:00:31]} 25. Qe2
{[%clk 0:01:32.6]} 25... b4 {[%clk 0:00:20.1]} 26. Qe6+ {[%clk 0:01:31]} 26...
Kh8 {[%clk 0:00:18.4]} 27. a4 {[%clk 0:01:26.1]} 27... Qc7 {[%clk 0:00:17.9]}
28. Bxh6 {[%clk 0:01:22.8]} 28... Bxh6 {[%clk 0:00:17.2]} 29. Qxg6 {[%clk
0:01:16.8]} 29... Bg7 {[%clk 0:00:12.2]} 30. Ng5 {[%clk 0:01:16.7]} 30... Kg8
{[%clk 0:00:13]} 31. Qf7+ {[%clk 0:01:10.2]} 31... Kh8 {[%clk 0:00:13.3]} 32.
Qxh5+ {[%clk 0:01:10.7]} 32... Kg8 {[%clk 0:00:14.1]} 33. Qf7+ {[%clk 0:01:10]}
33... Kh8 {[%clk 0:00:14.6]} 34. Qe8+ {[%clk 0:01:10.9]} 1-0